bitfinex-derivatives/quotes_BTCF0:USTF0_20250608
["timestamp","ask_amount","ask_price","bid_price","bid_amount"]
[1749376350179,1.28537336,105250.0,105240.0,1.21067422]
[1749376356390,1.28537336,105250.0,105240.0,1.12166238]
[1749376367796,1.28537336,105250.0,105240.0,1.15336238]
[1749376370400,1.28537336,105250.0,105240.0,1.15284238]
[1749376373300,1.28537336,105250.0,105240.0,1.12317986]
[1749376375706,1.4035845,105250.0,105240.0,1.12317986]
[1749376376306,1.4035845,105250.0,105240.0,1.24191332]
[1749376378199,1.4035845,105250.0,105240.0,1.12317986]
[1749376379606,1.28537336,105250.0,105240.0,1.12317986]
[1749376381209,1.28537336,105250.0,105240.0,0.67597986]
[1749376381410,1.28537336,105250.0,105240.0,1.12285986]
[1749376383005,1.25427336,105250.0,105240.0,1.12285986]
[1749376385110,1.25427336,105250.0,105240.0,1.241071]
[1749376385311,1.25427336,105250.0,105240.0,1.271271]
[1749376386202,1.25427336,105250.0,105240.0,1.18220006]
[1749376388614,1.25427336,105250.0,105240.0,1.30093352]
[1749376393217,1.03414246,105250.0,105240.0,1.66173352]
[1749376393514,1.03414246,105250.0,105240.0,1.69473352]
[1749376393711,1.00134246,105250.0,105240.0,1.69473352]
[1749376394112,1.00114246,105250.0,105240.0,1.69473352]
[1749376394313,1.00134246,105250.0,105240.0,1.69473352]
[1749376395616,1.19127326,105250.0,105240.0,1.69473352]
[1749376395817,1.00134246,105250.0,105240.0,1.69473352]
[1749376398618,1.00114246,105250.0,105240.0,1.69473352]
[1749376398818,1.00134246,105250.0,105240.0,1.69473352]
[1749376401122,1.00114246,105250.0,105240.0,1.69473352]
[1749376401322,1.00134246,105250.0,105240.0,1.69473352]
[1749376401720,1.00114246,105250.0,105240.0,1.69473352]
[1749376402025,1.00134246,105250.0,105240.0,1.69473352]
[1749376405926,1.00134246,105250.0,105240.0,1.86763352]
[1749376413427,1.00134246,105250.0,105240.0,1.74890006]
[1749376415929,1.00134246,105250.0,105240.0,1.38810006]
[1749376416131,1.00134246,105250.0,105240.0,2.10970006]
[1749376416424,1.00134246,105250.0,105240.0,2.22843352]
[1749376416624,1.03364246,105250.0,105240.0,2.22843352]
[1749376417830,1.03364246,105250.0,105240.0,2.34664466]
[1749376418030,1.00134246,105250.0,105240.0,2.36559686]
[1749376418231,1.00114246,105250.0,105240.0,2.36559686]
[1749376418431,1.00134246,105250.0,105240.0,2.36559686]
[1749376418633,1.00134246,105250.0,105240.0,2.67559686]
[1749376422635,1.00134246,105250.0,105240.0,2.70499944]
[1749376422636,1.00114246,105250.0,105240.0,2.70499944]
[1749376422841,1.00134246,105250.0,105240.0,2.70499944]
[1749376423859,1.00134246,105250.0,105240.0,2.91200569]
[1749376427656,1.00134246,105250.0,105240.0,2.35036602]
[1749376427848,1.00134246,105250.0,105240.0,2.70499944]
[1749376432559,1.03244246,105250.0,105240.0,2.70499944]
[1749376436062,1.03244246,105250.0,105240.0,2.25811944]
[1749376436258,1.03244246,105250.0,105240.0,2.81047944]
[1749376437662,1.03244246,105250.0,105240.0,2.08887944]
[1749376437860,1.03244246,105250.0,105240.0,2.81047944]
[1749376439661,1.03244246,105250.0,105240.0,3.01748569]
[1749376440064,1.03244246,105250.0,105240.0,2.81047944]
[1749376440568,1.03244246,105250.0,105240.0,2.22511944]
[1749376440763,1.03244246,105250.0,105240.0,2.77691944]
[1749376441168,1.03244246,105250.0,105240.0,2.98392569]
[1749376442969,1.03244246,105250.0,105240.0,2.98388569]
[1749376444470,1.03244246,105250.0,105240.0,2.83578178]
[1749376446175,0.0314,105260.0,105250.0,0.1899302]
[1749376446474,0.0314,105260.0,105250.0,1.36987148]
[1749376447064,0.0314,105260.0,105250.0,1.67987148]
[1749376447262,0.0314,105260.0,105250.0,1.68087148]
[1749376449175,0.0314,105260.0,105250.0,1.92247148]
[1749376449375,0.0628,105260.0,105250.0,1.92247148]
[1749376450170,0.0628,105260.0,105250.0,2.09537148]
[1749376451678,0.0628,105260.0,105250.0,1.39306034]
[1749376451872,0.0628,105260.0,105250.0,2.06279148]
[1749376452180,0.0959,105260.0,105250.0,2.06279148]
[1749376452374,0.0959,105260.0,105250.0,1.97423852]
[1749376452579,0.0959,105260.0,105250.0,1.61343852]
[1749376452773,0.0959,105260.0,105250.0,1.10909188]
[1749376453083,0.0959,105260.0,105250.0,1.87307445]
[1749376454174,0.0959,105260.0,105250.0,1.20338331]
[1749376454383,0.0959,105260.0,105250.0,1.87307445]
[1749376456086,0.0959,105260.0,105250.0,1.25521445]
[1749376456287,0.0959,105260.0,105250.0,1.70013445]
[1749376458685,0.2858128,105260.0,105250.0,1.70005445]
[1749376458885,0.0959,105260.0,105250.0,1.70005445]
[1749376460789,0.0959,105260.0,105250.0,1.70410323]
[1749376463384,0.0959,105260.0,105250.0,1.67437987]
[1749376465487,0.0959,105260.0,105250.0,1.12301987]
[1749376465687,0.0959,105260.0,105250.0,1.67421987]
[1749376468293,0.0959,105260.0,105250.0,1.55600873]
[1749376468490,0.0959,105260.0,105250.0,1.70451987]
[1749376473396,0.0959,105260.0,105250.0,1.61549012]
[1749376474298,0.0628,105260.0,105250.0,1.61549012]
[1749376476705,0.0628,105260.0,105250.0,1.64729012]
[1749376476904,0.0628,105260.0,105250.0,1.67919012]
[1749376477504,0.0628,105260.0,105250.0,1.79794323]
[1749376481209,0.0314,105260.0,105250.0,1.79794323]
[1749376489914,0.0314,105260.0,105250.0,1.79742323]
[1749376493519,0.0314,105260.0,105250.0,1.43662323]
[1749376493718,0.0314,105260.0,105250.0,1.79742323]
[1749376494015,0.0314,105260.0,105250.0,1.24674323]
[1749376494215,0.0314,105260.0,105250.0,1.79698323]
[1749376498019,0.0314,105260.0,105250.0,1.24674323]
[1749376498318,0.0314,105260.0,105250.0,1.79686323]
[1749376502928,0.0314,105260.0,105250.0,1.43606323]
[1749376503423,0.0314,105260.0,105250.0,1.76718443]
[1749376504124,0.0314,105260.0,105250.0,1.40638443]
[1749376504323,0.0314,105260.0,105250.0,1.76718443]
[1749376505520,0.0314,105260.0,105250.0,1.40638443]
[1749376505712,0.0314,105260.0,105250.0,1.76718443]
[1749376508324,0.0314,105260.0,105250.0,1.88593754]
[1749376509716,0.0314,105260.0,105250.0,1.76718443]
[1749376510823,0.0314,105260.0,105250.0,1.64897329]
[1749376511026,0.0314,105260.0,105250.0,1.76718443]
[1749376513421,0.0314,105260.0,105250.0,1.79686323]
[1749376514020,0.0314,105260.0,105250.0,1.43606323]
[1749376514218,0.0314,105260.0,105250.0,1.79686323]
[1749376515516,0.2213128,105260.0,105250.0,1.79686323]
[1749376515826,0.0314,105260.0,105250.0,1.79686323]
[1749376516727,0.2213128,105260.0,105250.0,1.79686323]
[1749376517329,0.2213128,105260.0,105250.0,1.43606323]
[1749376517529,0.2213128,105260.0,105250.0,1.79686323]
[1749376518119,0.2213128,105260.0,105250.0,1.24674323]
[1749376518324,0.2213128,105260.0,105250.0,1.79606323]
[1749376518520,0.0624,105260.0,105250.0,1.79606323]
[1749376520532,0.2523128,105260.0,105250.0,1.79606323]
[1749376520934,0.0624,105260.0,105250.0,1.79606323]
[1749376521837,0.2523128,105260.0,105250.0,1.79606323]
[1749376522040,0.2523128,105260.0,105250.0,1.24674323]
[1749376522334,0.2523128,105260.0,105250.0,1.79598323]
[1749376522639,0.2523128,105260.0,105250.0,1.24674323]
[1749376522833,0.2523128,105260.0,105250.0,1.79598323]
[1749376525634,0.0624,105260.0,105250.0,1.79598323]
[1749376526239,0.0314,105260.0,105250.0,1.79598323]
[1749376530239,0.0314,105260.0,105250.0,1.43518323]
[1749376530440,0.0314,105260.0,105250.0,1.79598323]
[1749376537046,0.0314,105260.0,105250.0,1.67777209]
[1749376537344,0.0314,105260.0,105250.0,1.79598323]
[1749376538245,0.0314,105260.0,105250.0,1.81501791]
[1749376539343,0.0314,105260.0,105250.0,1.81429791]
[1749376541448,0.0314,105260.0,105250.0,1.26577791]
[1749376541643,0.0314,105260.0,105250.0,1.81425791]
[1749376543249,0.0314,105260.0,105250.0,1.26577791]
[1749376543443,0.0314,105260.0,105250.0,1.81421791]
[1749376544847,0.2213128,105260.0,105250.0,1.81421791]
[1749376545849,0.2213128,105260.0,105250.0,1.45341791]
[1749376546049,0.0314,105260.0,105250.0,1.81421791]
[1749376548850,0.0314,105260.0,105250.0,1.26577791]
[1749376549152,0.0314,105260.0,105250.0,1.81409791]
[1749376553547,0.0314,105260.0,105250.0,1.90317281]
[1749376555041,0.0314,105260.0,105250.0,1.54237281]
[1749376555244,0.0314,105260.0,105250.0,1.90317281]
[1749376556151,0.0314,105260.0,105250.0,1.54237281]
[1749376556352,0.0314,105260.0,105250.0,1.7844197]
[1749376557252,0.0314,105260.0,105250.0,1.4236197]
[1749376557453,0.0314,105260.0,105250.0,1.7844197]
[1749376561055,0.2213128,105260.0,105250.0,1.7844197]
[1749376561555,0.0314,105260.0,105250.0,1.7844197]
[1749376561754,0.2213128,105260.0,105250.0,1.7844197]
[1749376562952,0.2213128,105260.0,105250.0,1.90317281]
[1749376563151,0.0314,105260.0,105250.0,1.90317281]
[1749376563555,0.0314,105260.0,105250.0,1.81409791]
[1749376566457,0.2213128,105260.0,105250.0,1.81409791]
[1749376568757,0.0314,105260.0,105250.0,1.81409791]
[1749376569258,0.2213128,105260.0,105250.0,1.81409791]
[1749376572954,0.2213128,105260.0,105250.0,0.72306677]
[1749376573161,0.85053508,105260.0,105250.0,0.67373269]
[1749376573364,0.52263508,105260.0,105250.0,0.64405504]
[1749376573555,0.40442394,105260.0,105250.0,1.25998075]
[1749376573857,0.40442394,105260.0,105250.0,1.2599809]
[1749376574057,0.76522394,105260.0,105250.0,1.25998087]
[1749376574261,0.76522394,105260.0,105250.0,1.25998244]
[1749376574461,0.40442394,105260.0,105250.0,1.26403122]
[1749376574861,0.40442394,105260.0,105250.0,1.20466618]
[1749376576165,0.76522394,105260.0,105250.0,1.26400989]
[1749376587578,0.40442394,105260.0,105250.0,1.26400989]
[1749376587779,0.76522394,105260.0,105250.0,1.26400989]
[1749376590383,0.6470128,105260.0,105250.0,1.26400989]
[1749376590575,0.76522394,105260.0,105250.0,1.29640989]
[1749376593280,0.40442394,105260.0,105250.0,1.29640989]
[1749376593482,0.76522394,105260.0,105250.0,1.25182737]
[1749376595075,0.76522394,105260.0,105250.0,0.80942737]
[1749376595276,0.76522394,105260.0,105250.0,1.25142737]
[1749376596383,0.40442394,105260.0,105250.0,1.25142737]
[1749376596583,0.76522394,105260.0,105250.0,1.25142737]
[1749376597082,0.40442394,105260.0,105250.0,1.25142737]
[1749376597382,0.76522394,105260.0,105250.0,1.25142737]
[1749376598581,0.73232394,105260.0,105250.0,1.25142737]
[1749376599382,0.73232394,105260.0,105250.0,0.89142737]
[1749376599581,0.73232394,105260.0,105250.0,1.06142737]
[1749376600081,0.37152394,105260.0,105250.0,1.06142737]
[1749376600481,0.73232394,105260.0,105250.0,1.06142737]
[1749376602386,0.82093842,105260.0,105250.0,1.15050283]
[1749376603488,0.73232394,105260.0,105250.0,1.04666618]
[1749376604188,0.37152394,105260.0,105250.0,1.04666618]
[1749376604487,0.73232394,105260.0,105250.0,1.04666618]
[1749376608890,0.37152394,105260.0,105250.0,1.04666618]
[1749376609094,0.73232394,105260.0,105250.0,1.04666618]
[1749376611194,0.37152394,105260.0,105250.0,1.04666618]
[1749376611395,0.73232394,105260.0,105250.0,1.04666618]
[1749376613085,0.37152394,105260.0,105250.0,1.04666618]
[1749376613289,0.73232394,105260.0,105250.0,1.04666618]
[1749376613994,0.73232394,105260.0,105250.0,1.0426174]
[1749376614992,0.73232394,105260.0,105250.0,1.04666618]
[1749376619994,0.5821128,105260.0,105250.0,1.04666618]
[1749376620199,0.5507128,105260.0,105250.0,1.10796618]
[1749376620399,0.1899128,105260.0,105250.0,1.10796618]
[1749376620602,0.1899128,105260.0,105250.0,1.22671929]
[1749376624596,0.30812394,105260.0,105250.0,1.22671929]
[1749376625396,0.30812394,105260.0,105250.0,1.10796618]
[1749376625805,0.30812394,105260.0,105250.0,0.95965504]
[1749376626003,0.36932394,105260.0,105250.0,1.07786618]
[1749376630000,0.36932394,105260.0,105250.0,0.63586618]
[1749376630205,0.36932394,105260.0,105250.0,1.07714618]
[1749376631306,0.36932394,105260.0,105250.0,0.63586618]
[1749376631507,0.36932394,105260.0,105250.0,1.07714618]
[1749376638408,0.36932394,105260.0,105250.0,0.63586618]
[1749376638612,0.36932394,105260.0,105250.0,1.07698618]
[1749376639609,0.36932394,105260.0,105250.0,0.60466618]
[1749376639810,0.36932394,105260.0,105250.0,1.04578618]
[1749376640010,0.36932394,105260.0,105250.0,0.60466618]
[1749376640312,0.40002394,105260.0,105250.0,1.04578618]
[1749376640811,0.2205128,105260.0,105250.0,1.04578618]
[1749376641018,0.2205128,105260.0,105250.0,1.11148618]
[1749376643713,0.2205128,105260.0,105250.0,1.12631751]
[1749376644408,0.2205128,105260.0,105250.0,1.21539297]
[1749376652619,0.1901128,105260.0,105250.0,1.21539297]
[1749376653223,0.1899128,105260.0,105250.0,1.21539297]
[1749376653523,0.1901128,105260.0,105250.0,1.11148618]
[1749376665632,0.0002,105260.0,105250.0,1.11148618]
[1749376666134,0.0002,105260.0,105250.0,1.23023929]
[1749376666729,0.0002,105260.0,105250.0,1.33439929]
[1749376666929,0.0002,105260.0,105250.0,1.33035051]
[1749376667331,0.1901128,105260.0,105250.0,1.33035051]
[1749376677841,0.0002,105260.0,105250.0,1.33035051]
[1749376678140,0.0002,105260.0,105250.0,1.24127505]
[1749376680041,0.0002,105260.0,105250.0,1.24532383]
[1749376680243,0.1901128,105260.0,105250.0,1.24532383]
[1749376680844,0.1901128,105260.0,105250.0,1.33438329]
[1749376681243,0.1901128,105260.0,105250.0,0.78910329]
[1749376681437,0.1901128,105260.0,105250.0,1.21541215]
[1749376681643,0.2223128,105260.0,105250.0,0.78910329]
[1749376681942,0.37122394,105260.0,105250.0,1.16372329]
[1749376682242,0.40192394,105260.0,105250.0,1.04497018]
[1749376682844,0.40192394,105260.0,105250.0,0.60465018]
[1749376683048,0.52013508,105260.0,105250.0,0.89435904]
[1749376683341,0.40192394,105260.0,105250.0,1.01257018]
[1749376683644,0.40192394,105260.0,105250.0,1.07194569]
[1749376683645,0.76272394,105260.0,105250.0,1.07194569]
[1749376684145,0.76252394,105260.0,105250.0,1.07194569]
[1749376684745,0.76252394,105260.0,105250.0,0.63162569]
[1749376685046,0.76252394,105260.0,105250.0,1.07190569]
[1749376687240,0.76252394,105260.0,105250.0,0.51341455]
[1749376687440,0.76252394,105260.0,105250.0,1.07186569]
[1749376688148,0.6443128,105260.0,105250.0,1.07186569]
[1749376688347,0.76252394,105260.0,105250.0,1.07186569]
[1749376689743,0.76252394,105260.0,105250.0,0.63162569]
[1749376689948,0.76252394,105260.0,105250.0,1.07182569]
[1749376692751,0.40172394,105260.0,105250.0,1.07182569]
[1749376692950,0.76252394,105260.0,105250.0,1.07182569]
[1749376693249,1.00252394,105260.0,105250.0,0.63162569]
[1749376693446,1.00252394,105260.0,105250.0,1.07178569]
[1749376693641,1.09113842,105260.0,105250.0,1.02724062]
[1749376696752,1.09113842,105260.0,105250.0,0.96786511]
[1749376697553,1.09113842,105260.0,105250.0,1.02724062]
[1749376697751,0.97292728,105260.0,105250.0,1.02724062]
[1749376698149,0.97292728,105260.0,105250.0,1.06014062]
[1749376698948,0.76292728,105260.0,105250.0,1.06014062]
[1749376699355,0.40212728,105260.0,105250.0,1.06014062]
[1749376699556,0.3135128,105260.0,105250.0,1.06014062]
[1749376700455,0.6743128,105260.0,105250.0,1.06014062]
[1749376700656,0.76292728,105260.0,105250.0,1.06014062]
[1749376703053,0.40212728,105260.0,105250.0,1.06014062]
[1749376703259,0.76292728,105260.0,105250.0,1.06014062]
[1749376703657,0.6743128,105260.0,105250.0,1.10468569]
[1749376706858,0.79252394,105260.0,105250.0,1.10468569]
[1749376707059,0.43172394,105260.0,105250.0,1.10468569]
[1749376707260,0.76182394,105260.0,105250.0,1.10468569]
[1749376711867,0.6436128,105260.0,105250.0,0.98647455]
[1749376712067,0.2828128,105260.0,105250.0,0.98647455]
[1749376712267,0.6436128,105260.0,105250.0,0.98647455]
[1749376714364,0.6436128,105260.0,105250.0,0.54631455]
[1749376714668,0.6436128,105260.0,105250.0,0.92673904]
[1749376719474,0.6436128,105260.0,105250.0,0.98611983]
[1749376720474,0.6436128,105260.0,105250.0,0.54631983]
[1749376721973,0.6750128,105260.0,105250.0,0.54631983]
[1749376723277,0.8550128,105260.0,105250.0,0.54631983]
[1749376724975,0.8550128,105260.0,105250.0,0.51341983]
[1749376726976,1.2946528,105260.0,105250.0,0.46889018]
[1749376727377,1.3982528,105260.0,105250.0,0.27895938]
[1749376727680,1.67688329,105260.0,105250.0,0.04552981]
[1749376728075,2.03688329,105260.0,105250.0,0.04552981]
[1749376728385,2.03688329,105260.0,105250.0,0.001]
[1749376729580,1.67688329,105260.0,105250.0,0.001]
[1749376730085,2.01688329,105260.0,105250.0,0.001]
[1749376730277,2.01678329,105260.0,105250.0,0.001]
[1749376732287,1.67678329,105260.0,105250.0,0.001]
[1749376732583,1.48676728,105260.0,105250.0,0.001]
[1749376732785,1.48676728,105260.0,105250.0,0.00504878]
[1749376733286,1.71676728,105260.0,105250.0,0.00504878]
[1749376733480,1.48676728,105260.0,105250.0,0.00504878]
[1749376733882,1.84756728,105260.0,105250.0,0.00504878]
[1749376734084,1.87703399,105260.0,105250.0,0.00504878]
[1749376735883,2.19703399,105260.0,105250.0,0.00504878]
[1749376736484,2.28580109,105260.0,105250.0,0.00504878]
[1749376736789,1.96580109,105260.0,105250.0,0.00504878]
[1749376738286,2.33580109,105260.0,105250.0,0.00504878]
[1749376738486,1.87703399,105260.0,105250.0,0.00504878]
[1749376738890,1.87703399,105260.0,105250.0,0.001]
[1749376740291,1.33379399,105260.0,105250.0,0.001]
[1749376740493,1.87683399,105260.0,105250.0,0.001]
[1749376741587,2.23683399,105260.0,105250.0,0.001]
[1749376741783,1.87683399,105260.0,105250.0,0.001]
[1749376741988,1.87683399,105260.0,105250.0,0.00504878]
[1749376742989,2.23683399,105260.0,105250.0,0.00504878]
[1749376743293,2.20683399,105260.0,105250.0,0.00504878]
[1749376743496,1.87683399,105260.0,105250.0,0.00504878]
[1749376744097,1.8475172,105260.0,105250.0,0.00504878]
[1749376745799,1.8475172,105260.0,105250.0,0.19498068]
[1749376746000,1.8475172,105260.0,105250.0,0.66838068]
[1749376747504,1.8475172,105260.0,105250.0,0.47844878]
[1749376747898,2.1775172,105260.0,105250.0,0.47844878]
[1749376748203,1.8475172,105260.0,105250.0,0.47844878]
[1749376750499,2.2175172,105260.0,105250.0,0.47844878]
[1749376750701,1.8475172,105260.0,105250.0,0.47844878]
[1749376753000,2.1975172,105260.0,105250.0,0.47844878]
[1749376753506,1.8475172,105260.0,105250.0,0.47844878]
[1749376753906,2.1575172,105260.0,105250.0,0.47844878]
[1749376755507,2.18683399,105260.0,105250.0,0.47844878]
[1749376756809,1.87683399,105260.0,105250.0,0.47844878]
[1749376757913,2.23683399,105260.0,105250.0,0.47844878]
[1749376758109,1.87683399,105260.0,105250.0,0.47844878]
[1749376758805,2.24683399,105260.0,105250.0,0.47844878]
[1749376759004,2.25683399,105260.0,105250.0,0.47844878]
[1749376759202,2.24683399,105260.0,105250.0,0.47844878]
[1749376759407,1.87683399,105260.0,105250.0,0.47844878]
[1749376759814,2.18683399,105260.0,105250.0,0.47844878]
[1749376760004,1.87683399,105260.0,105250.0,0.47844878]
[1749376761306,2.22683399,105260.0,105250.0,0.47844878]
[1749376761506,1.87683399,105260.0,105250.0,0.47844878]
[1749376761712,2.21683399,105260.0,105250.0,0.47844878]
[1749376762414,2.12683399,105260.0,105250.0,0.47844878]
[1749376763814,1.87683399,105260.0,105250.0,0.47844878]
[1749376764519,2.20683399,105260.0,105250.0,0.47844878]
[1749376766517,2.42637029,105260.0,105250.0,0.47844878]
[1749376767419,2.42637029,105260.0,105250.0,0.4744]
[1749376768318,2.42637029,105260.0,105250.0,0.47844878]
[1749376770612,2.23635428,105260.0,105250.0,0.47844878]
[1749376771807,0.1899488,105240.0,105230.0,0.08699]
[1749376772015,2.28109813,105240.0,105230.0,0.08699]
[1749376772219,1.87792708,105240.0,105230.0,0.08699]
[1749376772522,1.99629813,105240.0,105230.0,0.08699]
[1749376772720,2.35629813,105240.0,105230.0,0.08699]
[1749376772908,1.99629813,105240.0,105230.0,0.08699]
[1749376773218,1.87892708,105240.0,105230.0,0.09099]
[1749376773413,1.33652708,105240.0,105230.0,0.09503878]
[1749376773614,2.21888708,105240.0,105230.0,0.09503878]
[1749376773814,2.21888708,105240.0,105230.0,0.09703878]
[1749376774417,1.87888708,105240.0,105230.0,0.09703878]
[1749376774922,2.19888708,105240.0,105230.0,0.09703878]
[1749376775522,1.87888708,105240.0,105230.0,0.09299]
[1749376776524,2.25888708,105240.0,105230.0,0.09299]
[1749376776722,1.87888708,105240.0,105230.0,0.09299]
[1749376777327,1.33652708,105240.0,105230.0,0.09299]
[1749376777626,1.87888708,105240.0,105230.0,0.09299]
[1749376778522,1.87888708,105240.0,105230.0,0.09703878]
[1749376781216,2.05888708,105240.0,105230.0,0.09703878]
[1749376781625,1.87888708,105240.0,105230.0,0.09703878]
[1749376782919,2.24888708,105240.0,105230.0,0.09703878]
[1749376783124,1.87888708,105240.0,105230.0,0.09703878]
[1749376783327,2.23888708,105240.0,105230.0,0.09703878]
[1749376783521,1.87888708,105240.0,105230.0,0.09703878]
[1749376783723,1.87888708,105240.0,105230.0,0.06673878]
[1749376783927,2.23888708,105240.0,105230.0,0.06673878]
[1749376786028,2.23888708,105240.0,105230.0,0.06573878]
[1749376786223,2.20708708,105240.0,105230.0,0.06573878]
[1749376786423,2.23708708,105240.0,105230.0,0.06573878]
[1749376786832,2.26667985,105240.0,105230.0,0.06573878]
[1749376787033,2.26667985,105240.0,105230.0,0.06473878]
[1749376789126,0.1899685,105230.0,105220.0,0.03244246]
[1749376789324,0.1899866,105220.0,105210.0,0.061]
[1749376789530,0.1899866,105220.0,105210.0,0.06074873]
[1749376789531,1.46401013,105220.0,105210.0,0.06074873]
[1749376789930,1.47366735,105220.0,105210.0,0.06074873]
[1749376791128,0.93166735,105220.0,105210.0,0.06174873]
[1749376791330,1.47366735,105220.0,105210.0,0.06174873]
[1749376791728,1.54890928,105220.0,105210.0,0.06174873]
[1749376792828,1.54990928,105220.0,105210.0,0.06174873]
[1749376793132,1.51780928,105220.0,105210.0,0.001]
[1749376793333,1.84780928,105220.0,105210.0,0.001]
[1749376793533,1.51780928,105220.0,105210.0,0.001]
[1749376793923,1.42918829,105220.0,105210.0,0.001]
[1749376795329,1.76918829,105220.0,105210.0,0.001]
[1749376795529,1.42918829,105220.0,105210.0,0.001]
[1749376797634,1.78918829,105220.0,105210.0,0.001]
[1749376797834,1.76918829,105220.0,105210.0,0.001]
[1749376798031,1.78918829,105220.0,105210.0,0.001]
[1749376798231,1.42918829,105220.0,105210.0,0.001]
[1749376798632,1.77910829,105220.0,105210.0,0.001]
[1749376798827,0.88718829,105220.0,105210.0,0.001]
[1749376799031,1.42910829,105220.0,105210.0,0.001]
[1749376799730,0.88718829,105220.0,105210.0,0.001]
[1749376799933,1.42910829,105220.0,105210.0,0.001]
[1749376800233,0.88718829,105220.0,105210.0,0.1910036]
[1749376800438,1.42910829,105220.0,105210.0,0.1910036]
[1749376800631,0.75034829,105220.0,105210.0,0.1910036]
[1749376800933,0.75034829,105220.0,105210.0,0.23546747]
[1749376802233,0.75034829,105220.0,105210.0,0.001]
[1749376802432,0.74034829,105220.0,105210.0,0.001]
[1749376802634,1.35034829,105220.0,105210.0,0.001]
[1749376802833,1.34034829,105220.0,105210.0,0.001]
[1749376803133,1.00034829,105220.0,105210.0,0.001]
[1749376803328,0.62753107,105220.0,105210.0,0.1910037]
[1749376803642,0.40989107,105220.0,105210.0,0.23546757]
[1749376804029,0.19148914,105220.0,105210.0,0.23546757]
[1749376804236,0.19148914,105220.0,105210.0,0.59626757]
[1749376804431,0.19148914,105220.0,105210.0,0.65564836]
[1749376804637,0.19148914,105220.0,105210.0,0.74470782]
[1749376804937,0.19148914,105220.0,105210.0,0.75399645]
[1749376805133,0.19148914,105220.0,105210.0,0.70024395]
[1749376807346,0.19148914,105220.0,105210.0,0.70124395]
[1749376809441,0.19148914,105220.0,105210.0,0.95124395]
[1749376811146,0.19148824,105220.0,105210.0,0.95124395]
[1749376811447,0.19148824,105220.0,105210.0,1.38988395]
[1749376812854,0.00150254,105220.0,105210.0,1.38988395]
[1749376813045,0.19148824,105220.0,105210.0,1.38988395]
[1749376813446,0.00150254,105220.0,105210.0,1.38988395]
[1749376814152,0.19148824,105220.0,105210.0,1.38988395]
[1749376814449,0.00150254,105220.0,105210.0,1.38988395]
[1749376815047,0.00014246,105230.0,105220.0,0.1899849]
[1749376815255,0.1899668,105230.0,105220.0,0.8721085]
[1749376815549,0.1899668,105230.0,105220.0,1.0621805]
[1749376816252,0.1909668,105230.0,105220.0,1.0631805]
[1749376816451,0.001,105230.0,105220.0,1.0631805]
[1749376816644,0.1909668,105230.0,105220.0,1.0631805]
[1749376817053,0.001,105230.0,105220.0,1.0631805]
[1749376817251,0.1909668,105230.0,105220.0,1.0631805]
[1749376817457,0.1909668,105230.0,105220.0,1.1661405]
[1749376817754,0.1909668,105230.0,105220.0,0.9760685]
[1749376818055,0.001,105230.0,105220.0,0.9760685]
[1749376818557,0.1909668,105230.0,105220.0,0.9760685]
[1749376823154,0.19501558,105230.0,105220.0,1.02048877]
[1749376823458,0.19501558,105230.0,105220.0,0.9760685]
[1749376824058,0.19501558,105230.0,105220.0,0.87214914]
[1749376825166,0.1909668,105230.0,105220.0,0.87214914]
[1749376825560,0.1909668,105230.0,105220.0,0.84678914]
[1749376826066,0.1909668,105230.0,105220.0,0.80236754]
[1749376826260,0.19501558,105230.0,105220.0,0.84678914]
[1749376828265,0.1909668,105230.0,105220.0,0.84678914]
[1749376829361,0.19501558,105230.0,105220.0,0.84674914]
[1749376831160,0.22791558,105230.0,105220.0,0.84674914]
[1749376831867,0.25951558,105230.0,105220.0,0.84674914]
[1749376833071,0.65291558,105230.0,105220.0,0.40838914]
[1749376833578,0.65291558,105230.0,105220.0,0.31340134]
[1749376833878,0.65291558,105230.0,105220.0,0.23897974]
[1749376834067,0.65291558,105230.0,105220.0,0.34268284]
[1749376838180,0.65291558,105230.0,105220.0,0.4317423]
[1749376838377,0.65291558,105230.0,105220.0,0.43181904]
[1749376839478,0.66291558,105230.0,105220.0,0.43181904]
[1749376840082,0.65291558,105230.0,105220.0,0.43181904]
[1749376841577,0.92291558,105230.0,105220.0,0.43181904]
[1749376842068,0.92291558,105230.0,105220.0,0.3873207]
[1749376843580,0.92291558,105230.0,105220.0,0.3843431]
[1749376843776,1.27291558,105230.0,105220.0,0.04601724]
[1749376843982,1.11433657,105230.0,105220.0,0.04601724]
[1749376844677,1.11433657,105230.0,105220.0,0.00150254]
[1749376844879,1.43433657,105230.0,105220.0,0.00150254]
[1749376847186,1.07353657,105230.0,105220.0,0.00150254]
[1749376847387,1.79513657,105230.0,105220.0,0.00150254]
[1749376850190,1.07353657,105230.0,105220.0,0.00150254]
[1749376850388,1.79513657,105230.0,105220.0,0.00150254]
[1749376852684,0.1900029,105210.0,105200.0,0.04465716]
[1749376852889,0.190021,105200.0,105190.0,0.32692559]
[1749376853091,0.647721,105200.0,105190.0,0.55692559]
[1749376853287,0.64797227,105200.0,105190.0,0.55692559]
[1749376854089,0.64897227,105200.0,105190.0,0.55792559]
[1749376856285,0.64897227,105200.0,105190.0,0.49864409]
[1749376856694,0.72576228,105200.0,105190.0,0.49864409]
[1749376857192,0.7353745,105200.0,105190.0,0.49864409]
[1749376858789,0.66146228,105200.0,105190.0,0.49864409]
[1749376858996,0.55207227,105200.0,105190.0,0.56164409]
[1749376859188,0.00125127,105200.0,105190.0,0.56164409]
[1749376859393,0.19127227,105200.0,105190.0,0.62092559]
[1749376864003,0.19127227,105200.0,105190.0,0.70998505]
[1749376864900,0.19127227,105200.0,105190.0,0.71403383]
[1749376865696,0.19127227,105200.0,105190.0,1.15215383]
[1749376866695,0.19127227,105200.0,105190.0,0.71403383]
[1749376866898,0.22367227,105200.0,105190.0,0.62497437]
[1749376867301,0.58447227,105200.0,105190.0,0.62497437]
[1749376867502,0.64847227,105200.0,105190.0,0.62497437]
[1749376867707,0.64847227,105200.0,105190.0,0.56569287]
[1749376868207,0.64847227,105200.0,105190.0,0.62497437]
[1749376873416,0.64847227,105200.0,105190.0,0.59377437]
[1749376874111,0.64847227,105200.0,105190.0,0.53449287]
[1749376875811,0.64847227,105200.0,105190.0,0.49008698]
[1749376877411,0.55207227,105200.0,105190.0,0.49008698]
[1749376877609,0.00125127,105200.0,105190.0,0.94186848]
[1749376877811,0.00125127,105200.0,105190.0,1.00134009]
[1749376878114,0.00125127,105200.0,105190.0,1.10398009]
[1749376880709,0.00125127,105200.0,105190.0,1.46478009]
[1749376881599,0.19040233,105210.0,105200.0,0.1900204]
[1749376881800,0.00039373,105210.0,105200.0,0.77135262]
[1749376882204,0.00039373,105210.0,105200.0,1.20931262]
[1749376882414,0.19039603,105210.0,105200.0,1.20931262]
[1749376882807,0.19239603,105210.0,105200.0,1.20931262]
[1749376884013,0.19239603,105210.0,105200.0,1.15001973]
[1749376884408,0.19439603,105210.0,105200.0,1.15001973]